fUSD/lending_fUSD_20240905
["ID","MTS","AMOUNT","RATE_DAILY","PERIOD"]
[337265856,1725557444569,-500.0,0.00014986,2]
[337265857,1725557444578,-500.0,0.00014986,2]
[337265858,1725557444587,-500.0,0.00014986,2]
[337265859,1725557444597,-500.0,0.00014986,2]
[337265860,1725557444607,-1623.36,0.00014986,2]
[337265861,1725557444616,-480.0,0.00014986,2]
[337265862,1725557444625,-516.35598166,0.00014986,2]
[337265863,1725557444635,-8362.13,0.00014986,2]
[337265864,1725557444644,-500.0,0.00014986,2]
[337265865,1725557444654,-1025.65,0.00014986,2]
[337265866,1725557444663,-500.0,0.00014986,2]
[337265867,1725557444673,-511.96284658,0.00014986,2]
[337265868,1725557444683,-3431.45,0.00014986,2]
[337265869,1725557444692,-509.43135414,0.00014986,2]
[337265870,1725557444702,-500.0,0.00014986,2]
[337265871,1725557444712,-1151.75,0.00014986,2]
[337265872,1725557444721,-500.0,0.00014986,2]
[337265873,1725557444730,-66.29225277,0.00014986,2]
[337265874,1725557445214,-500.0,0.00014879,2]
[337265875,1725557445224,-500.0,0.00014896,2]
[337265876,1725557445233,-433.70774723,0.00014986,2]
[337265877,1725557445242,-500.0,0.00014986,2]
[337265878,1725557445251,-966.29225277,0.00014986,2]
[337265879,1725557445267,-2174.2846125,0.00014986,2]
[337265880,1725557446043,-500.39840682,0.00014896,2]
[337265881,1725557446052,-182.04320805,0.000149,2]
[337265882,1725557446061,-1956.73313473,0.00014986,2]
[337265883,1725557446070,-109.13029577,0.00014986,2]
[337265884,1725557446089,-549.96057904,0.00014986,2]
[337265885,1725557446208,-960.79912519,0.00014986,2]
[337265886,1725557446217,-1939.20087481,0.00014986,2]
[337265895,1725557848042,157.87,0.00010959,2]
[337265896,1725557895678,1076.77,0.00011897,2]
[337265897,1725557961274,11506.0,0.000132,3]
[337265898,1725558085384,11506.0,0.000131,5]
[337265900,1725558477699,1022.93,0.00011813,2]
[337265913,1725558631964,-150.00000068,0.00013488,2]
[337265915,1725558631974,-183.3778989,0.00013488,2]
[337265917,1725558631983,-116.62210042,0.00013727,2]
[337265922,1725558632020,-133.37789958,0.00013727,2]
[337265924,1725558632029,-417.72767542,0.00013728,2]
[337265928,1725558632079,-111.47232458,0.00013728,2]
[337265929,1725558632089,-178.98767542,0.00013751,2]
[337265930,1725558632143,-455.69310806,0.00013751,2]
[337265931,1725558632155,-165.31921652,0.00013751,2]
[337265932,1725558632164,-300.0,0.00013783,2]
[337265933,1725558632174,-1380.04078089,0.00013784,2]
[337265945,1725558638024,-2754.6452705,0.00013784,2]
[337265947,1725558638036,-6670.33195129,0.00013784,2]
[337265948,1725558638245,-585.70767439,0.00013784,2]
[337265949,1725558638413,-985.02,0.00013784,2]
[337265958,1725558640048,-11524.25432293,0.00013784,2]
[337265960,1725558640058,-250.0,0.00013784,2]
[337265962,1725558640067,-150.38,0.00013788,2]
[337265964,1725558640076,-200.0,0.00013808,2]
[337265966,1725558640085,-184.97,0.00013863,2]
[337265968,1725558640094,-1022.93,0.00014077,2]
[337265970,1725558640103,-150.0,0.00014248,2]
[337265972,1725558640113,-14977.44,0.00014249,2]
[337265973,1725558640122,-28221.39,0.00014249,2]
[337265974,1725558640131,-5398.16114036,0.00014249,2]
[337265975,1725558640140,-159.12,0.00014421,2]
[337265976,1725558640149,-421.09,0.00014426,2]
[337265977,1725558640158,-422.04,0.000145,2]
[337265978,1725558640167,-6746.5996,0.00014666,2]
[337265979,1725558640176,-422.04,0.000147,2]
[337265980,1725558640185,-422.04,0.000147,2]
[337265981,1725558640195,-422.04,0.000147,2]
[337265982,1725558640204,-1500.0,0.000147,2]
[337265983,1725558640214,-1000.0,0.000147,2]
[337265984,1725558640223,-1500.0,0.00014731,2]
[337265985,1725558640232,-759.64356013,0.00014743,2]
[337265986,1725558640241,-150.0,0.00014753,2]
[337265987,1725558640251,-1500.0,0.00014766,2]
[337265988,1725558640260,-152.64908017,0.00014769,2]
[337265989,1725558640269,-150.0,0.00014773,2]
[337265990,1725558640278,-199.939593,0.00014795,2]
[337265991,1725558640287,-1000.0,0.00014797,2]
[337265992,1725558640296,-1147.0,0.000148,2]
[337265993,1725558640305,-150.0,0.00014809,2]
[337265994,1725558640314,-1500.0,0.00014862,2]
[337265995,1725558640323,-422.35,0.00014869,3]
[337265996,1725558640332,-500.0,0.00014879,2]
[337265997,1725558640342,-500.0,0.00014879,2]
[337265998,1725558640351,-500.0,0.00014879,2]
[337265999,1725558640360,-567.20003181,0.00014879,2]
[337266000,1725558640369,-500.0,0.00014879,2]
[337266001,1725558640379,-504.28967703,0.00014879,2]
[337266002,1725558640388,-500.0,0.00014879,2]
[337266003,1725558640400,-500.0,0.00014879,2]
[337266004,1725558640408,-500.0,0.00014879,2]
[337266005,1725558640418,-500.0,0.00014879,2]
[337266006,1725558640427,-500.0,0.00014879,2]
[337266007,1725558640436,-200.94480576,0.00014879,2]
[337266008,1725558640445,-500.0,0.00014879,2]
[337266009,1725558640454,-500.0,0.00014879,2]
[337266010,1725558640463,-500.0,0.00014879,2]
[337266011,1725558640472,-500.0,0.00014879,2]
[337266012,1725558640481,-500.0,0.00014879,2]
[337266013,1725558640490,-500.0,0.00014879,2]
[337266014,1725558640499,-500.0,0.00014879,2]
[337266015,1725558640508,-500.0,0.00014879,2]
[337266017,1725558640517,-500.0,0.00014879,2]
[337266019,1725558640526,-500.0,0.00014879,2]
[337266021,1725558640535,-500.0,0.00014879,2]
[337266023,1725558640544,-617.69,0.00014879,2]
[337266025,1725558640553,-555.57,0.00014879,2]
[337266026,1725558640562,-500.0,0.00014879,2]
[337266027,1725558640571,-500.0,0.00014879,2]
[337266029,1725558640581,-500.0,0.00014879,2]
[337266031,1725558640591,-500.0,0.00014879,2]
[337266033,1725558640600,-500.0,0.00014879,2]
[337266035,1725558640609,-154.73659524,0.00014879,2]
[337266046,1725558641037,-345.26340476,0.00014879,2]
[337266047,1725558641046,-139.64357303,0.00014879,2]
[337266048,1725558641066,-360.35642697,0.00014879,2]
[337266049,1725558641075,-500.0,0.00014879,2]
[337266050,1725558641084,-28.74787699,0.00014879,2]
[337266051,1725558641095,-471.25212301,0.00014879,2]
[337266052,1725558641104,-500.0,0.00014879,2]
[337266053,1725558641114,-500.0,0.00014879,2]
[337266054,1725558641123,-150.43901569,0.00014879,2]
[337266055,1725558641134,-349.56098431,0.00014879,2]
[337266056,1725558641143,-500.0,0.00014879,2]
[337266057,1725558641153,-500.0,0.00014879,2]
[337266058,1725558641163,-37.02515419,0.00014879,2]
[337266059,1725558641235,-8.12517212,0.00014879,2]
[337266060,1725558641258,-454.84967369,0.00014879,2]
[337266061,1725558641267,-500.0,0.00014879,2]
[337266062,1725558641276,-500.0,0.00014879,2]
[337266063,1725558641286,-642.46708262,0.00014879,2]
[337266064,1725558641296,-524.11326052,0.00014879,2]
[337266065,1725558641307,-517.22312268,0.00014879,2]
[337266066,1725558641318,-500.0,0.00014879,2]
[337266067,1725558641328,-518.98664165,0.00014879,2]
[337266068,1725558641337,-88.33909876,0.00014879,2]
[337266069,1725558641349,-411.66090124,0.00014879,2]
[337266070,1725558641358,-522.99678609,0.00014879,2]
[337266071,1725558641367,-500.0,0.00014879,2]
[337266072,1725558641377,-500.0,0.00014879,2]
[337266073,1725558641386,-500.0,0.00014879,2]
[337266074,1725558641396,-500.0,0.00014879,2]
[337266075,1725558641405,-500.0,0.00014879,2]
[337266076,1725558641414,-504.55233336,0.00014879,2]
[337266077,1725558641423,-79.88125893,0.00014879,2]
[337266078,1725558641435,-315.6,0.00014879,2]
[337266088,1725558643106,-104.51874107,0.00014879,2]
[337266089,1725558643116,-500.0,0.00014879,2]
[337266090,1725558643126,-500.0,0.00014879,2]
[337266091,1725558643136,-425.32,0.00014879,2]
[337266092,1725558643146,-500.0,0.00014879,2]
[337266093,1725558643155,-500.0,0.00014879,2]
[337266094,1725558643164,-461.26385847,0.00014879,2]
[337266095,1725558643173,-500.0,0.00014879,2]
[337266096,1725558643183,-500.0,0.00014879,2]
[337266097,1725558643193,-500.0,0.00014879,2]
[337266098,1725558643203,-500.0,0.00014879,2]
[337266099,1725558643214,-500.0,0.00014879,2]
[337266100,1725558643223,-506.77532653,0.00014879,2]
[337266101,1725558643234,-500.0,0.00014879,2]
[337266102,1725558643243,-500.0,0.00014879,2]
[337266103,1725558643253,-500.0,0.00014879,2]
[337266104,1725558643263,-500.0,0.00014879,2]
[337266105,1725558643273,-458.9813832,0.00014879,2]
[337266109,1725558643302,-41.0186168,0.00014879,2]
[337266111,1725558643311,-509.11711184,0.00014879,2]
[337266113,1725558643319,-519.91448906,0.00014879,2]
[337266115,1725558643328,-500.0,0.00014879,2]
[337266117,1725558643339,-500.0,0.00014879,2]
[337266119,1725558643350,-500.0,0.00014879,2]
[337266121,1725558643359,-500.0,0.00014879,2]
[337266123,1725558643370,-256.48314854,0.00014879,2]
[337266126,1725558643382,-243.51685146,0.00014879,2]
[337266128,1725558643393,-500.0,0.00014879,2]
[337266130,1725558643403,-187.12577325,0.00014879,2]
[337266162,1725559009027,920.63,0.0001193,2]
[337266163,1725559100059,750.0,0.00011,2]
[337266164,1725559101166,800.0,0.00013,2]
[337266167,1725559495680,306.98,0.00010959,2]
[337266168,1725559571011,874.59,0.0001192,2]
[337266170,1725559832456,-264.6,0.00013812,2]
[337266171,1725559832465,-185.0,0.00013831,2]
[337266172,1725559832474,-2398.43778717,0.00013833,2]
[337266173,1725559832485,-2420.55223098,0.00013833,2]
[337266188,1725559838270,-354.61918759,0.00013833,2]
[337266189,1725559838280,-11330.4,0.00013833,2]
[337266190,1725559838292,-5828.34034015,0.00013833,2]
[337266191,1725559838606,-1567.65045411,0.00013833,2]
[337266192,1725559838616,-250.0,0.00013838,2]
[337266193,1725559838626,-250.0,0.00013838,2]
[337266194,1725559838635,-640.0,0.00013846,2]
[337266195,1725559838645,-360.0,0.00013857,2]
[337266196,1725559838655,-363.0,0.00013935,2]
[337266197,1725559838664,-151.77,0.00014035,2]
[337266198,1725559838674,-874.59,0.00014184,2]
[337266199,1725559838684,-2406.99782389,0.0001473,2]
[337266200,1725559838696,-296.68867778,0.0001473,2]
[337266201,1725559838707,-296.31349833,0.0001473,2]
[337266202,1725559838717,-150.0,0.00014753,2]
[337266203,1725559838726,-150.0,0.00014754,2]
[337266204,1725559838735,-12288.64491292,0.00014754,2]
[337266207,1725559840247,-1008.81491714,0.00014754,2]
[337266208,1725559840474,-1175.375,0.00014754,2]
[337266209,1725559840534,-733.82516994,0.00014754,2]
[337266210,1725559840545,-1180.90633339,0.00014754,2]
[337266245,1725559843595,-331.8467599,0.00014754,2]
[337266246,1725559843606,-781.98895347,0.00014754,2]
[337266247,1725559843617,-280.44910125,0.00014754,2]
[337266248,1725559843632,-962.77885199,0.00014754,2]
[337266249,1725559843641,-1500.0,0.00014774,2]
[337266250,1725559843651,-2500.0,0.00014794,2]
[337266251,1725559843660,-179.945634,0.00014795,2]
[337266252,1725559843670,-150.0,0.00014844,2]
[337266253,1725559843680,-150.0,0.0001486,2]
[337266254,1725559843691,-1500.0,0.00014864,2]
[337266255,1725559843700,-150.0,0.00014874,2]
[337266256,1725559843710,-163.37894835,0.00014876,2]
[337266257,1725559843720,-200.0,0.00014879,2]
[337266259,1725559843729,-200.0,0.00014879,2]
[337266260,1725559843739,-200.0,0.00014879,2]
[337266261,1725559843748,-200.0,0.00014879,2]
[337266262,1725559843757,-317.13339458,0.00014884,2]
[337266263,1725559843768,-164.99535302,0.00014893,2]
[337266264,1725559843777,-500.0,0.00014894,2]
[337266265,1725559843787,-509.66,0.00014894,2]
[337266266,1725559843796,-500.0,0.00014894,2]
[337266267,1725559843806,-500.0,0.00014894,2]
[337266268,1725559843815,-495.47658678,0.00014894,2]
[337266269,1725559843825,-463.79,0.00014894,2]
[337266270,1725559843834,-565.61,0.00014894,2]
[337266271,1725559843844,-500.0,0.00014894,2]
[337266272,1725559843853,-500.0,0.00014894,2]
[337266274,1725559843863,-500.0,0.00014894,2]
[337266276,1725559843873,-424.58,0.00014894,2]
[337266277,1725559843883,-500.0,0.00014894,2]
[337266279,1725559843892,-500.0,0.00014894,2]
[337266281,1725559843903,-500.0,0.00014894,2]
[337266283,1725559843912,-158.57026619,0.00014894,2]
[337266285,1725559843922,-500.0,0.00014894,2]
[337266287,1725559843932,-500.0,0.00014894,2]
[337266289,1725559843941,-502.36,0.00014894,2]
[337266291,1725559843951,-500.0,0.00014894,2]
[337266293,1725559843960,-500.0,0.00014894,2]
[337266295,1725559843969,-418.35296751,0.00014894,2]
[337266297,1725559843979,-500.0,0.00014894,2]
[337266299,1725559843989,-500.0,0.00014894,2]
[337266301,1725559843998,-500.0,0.00014894,2]
[337266303,1725559844008,-440.19247083,0.00014894,2]
[337266305,1725559844017,-500.0,0.00014894,2]
[337266307,1725559844026,-500.0,0.00014894,2]
[337266309,1725559844036,-500.0,0.00014894,2]
[337266311,1725559844045,-500.0,0.00014894,2]
[337266313,1725559844054,-500.0,0.00014894,2]
[337266315,1725559844064,-500.0,0.00014894,2]
[337266317,1725559844073,-500.0,0.00014894,2]
[337266319,1725559844083,-527.1,0.00014894,2]
[337266321,1725559844092,-8.11582405,0.00014894,2]
[337266322,1725559844104,-491.88417595,0.00014894,2]
[337266324,1725559844113,-500.0,0.00014894,2]
[337266326,1725559844123,-500.0,0.00014894,2]
[337266328,1725559844136,-500.0,0.00014894,2]
[337266330,1725559844146,-500.0,0.00014894,2]
[337266332,1725559844156,-500.0,0.00014894,2]
[337266334,1725559844166,-269.94817931,0.00014894,2]
[337266336,1725559844177,-500.0,0.00014894,2]
[337266338,1725559844187,-500.0,0.00014894,2]
[337266340,1725559844197,-500.0,0.00014894,2]
[337266342,1725559844207,-246.72,0.00014894,2]
[337266344,1725559844216,-500.0,0.00014894,2]
[337266346,1725559844226,-500.0,0.00014894,2]
[337266348,1725559844235,-500.0,0.00014894,2]
[337266350,1725559844244,-500.0,0.00014894,2]
[337266351,1725559844254,-272.33,0.00014894,2]
[337266353,1725559844263,-500.0,0.00014894,2]
[337266355,1725559844273,-500.0,0.00014894,2]
[337266358,1725559844286,-563.12168034,0.00014894,2]
[337266360,1725559844295,-361.1,0.00014894,2]
[337266362,1725559844305,-500.0,0.00014894,2]
[337266363,1725559844316,-180.69267022,0.00014894,2]
[337266365,1725559844326,-500.0,0.00014894,2]
[337266367,1725559844335,-500.0,0.00014894,2]
[337266369,1725559844345,-500.0,0.00014894,2]
[337266371,1725559844354,-500.0,0.00014894,2]
[337266373,1725559844363,-500.0,0.00014894,2]
[337266375,1725559844373,-500.0,0.00014894,2]
[337266377,1725559844382,-500.0,0.00014894,2]
[337266379,1725559844391,-500.0,0.00014894,2]
[337266381,1725559844400,-500.0,0.00014894,2]
[337266383,1725559844410,-500.0,0.00014894,2]
[337266385,1725559844423,-500.0,0.00014894,2]
[337266387,1725559844433,-500.0,0.00014894,2]
[337266389,1725559844442,-500.0,0.00014894,2]
[337266391,1725559844452,-500.0,0.00014894,2]
[337266393,1725559844461,-500.0,0.00014894,2]
[337266395,1725559844471,-500.0,0.00014894,2]
[337266396,1725559844480,-500.0,0.00014894,2]
[337266398,1725559844489,-546.49,0.00014894,2]
[337266400,1725559844498,-500.0,0.00014894,2]
[337266402,1725559844507,-500.0,0.00014894,2]
[337266404,1725559844517,-500.0,0.00014894,2]
[337266407,1725559844529,-505.99707216,0.00014894,2]
[337266408,1725559844539,-500.0,0.00014894,2]
[337266410,1725559844548,-500.0,0.00014894,2]
[337266412,1725559844557,-500.0,0.00014894,2]
[337266414,1725559844567,-214.85,0.00014894,2]
[337266416,1725559844576,-500.0,0.00014894,2]
[337266418,1725559844586,-500.0,0.00014894,2]
[337266420,1725559844596,-500.0,0.00014894,2]
[337266422,1725559844605,-500.0,0.00014894,2]
[337266424,1725559844615,-500.0,0.00014894,2]
[337266426,1725559844625,-500.0,0.00014894,2]
[337266428,1725559844635,-500.0,0.00014894,2]
[337266430,1725559844644,-500.0,0.00014894,2]
[337266432,1725559844654,-500.0,0.00014894,2]
[337266434,1725559844663,-500.0,0.00014894,2]
[337266436,1725559844672,-500.0,0.00014894,2]
[337266438,1725559844682,-460.4,0.00014894,2]
[337266440,1725559844691,-500.0,0.00014894,2]
[337266442,1725559844700,-396.77,0.00014894,2]
[337266444,1725559844710,-509.52,0.00014894,2]
[337266446,1725559844719,-500.0,0.00014894,2]
[337266448,1725559844729,-500.0,0.00014894,2]
[337266450,1725559844738,-500.0,0.00014894,2]
[337266452,1725559844748,-500.0,0.00014894,2]
[337266454,1725559844757,-500.0,0.00014894,2]
[337266456,1725559844766,-500.0,0.00014894,2]
[337266458,1725559844776,-500.0,0.00014894,2]
[337266459,1725559844785,-500.0,0.00014894,2]
[337266460,1725559844795,-500.0,0.00014894,2]
[337266461,1725559844805,-500.0,0.00014894,2]
[337266462,1725559844816,-500.0,0.00014894,2]
[337266463,1725559844835,-500.0,0.00014894,2]
[337266464,1725559844845,-500.0,0.00014894,2]
[337266465,1725559844854,-500.0,0.00014894,2]
[337266466,1725559844863,-500.0,0.00014894,2]
[337266467,1725559844873,-314.93,0.00014894,2]
[337266468,1725559844883,-500.0,0.00014894,2]
[337266469,1725559844893,-500.0,0.00014894,2]
[337266470,1725559844902,-500.0,0.00014894,2]
[337266471,1725559844912,-1488.08,0.00014894,2]
[337266472,1725559844921,-562.78565728,0.00014894,2]
[337266473,1725559844931,-500.0,0.00014894,2]
[337266474,1725559844941,-500.0,0.00014894,2]
[337266475,1725559844950,-500.0,0.00014894,2]
[337266476,1725559844959,-500.0,0.00014894,2]
[337266477,1725559844969,-500.0,0.00014894,2]
[337266478,1725559844978,-937.11,0.00014894,2]
[337266479,1725559844988,-500.0,0.00014894,2]
[337266480,1725559844997,-500.0,0.00014894,2]
[337266481,1725559845007,-500.0,0.00014894,2]
[337266482,1725559845016,-7665.29,0.00014894,2]
[337266483,1725559845026,-500.0,0.00014894,2]
[337266484,1725559845035,-500.0,0.00014894,2]
[337266485,1725559845045,-500.0,0.00014894,2]
[337266486,1725559845054,-500.0,0.00014894,2]
[337266488,1725559845069,-500.0,0.00014894,2]
[337266490,1725559845079,-500.0,0.00014894,2]
[337266492,1725559845088,-290.13610367,0.00014894,2]
[337266494,1725559845098,-940.18,0.00014894,2]
[337266496,1725559845108,-81.2296239,0.00014894,2]
[337266499,1725559845126,-418.7703761,0.00014894,2]
[337266501,1725559845139,-500.0,0.00014894,2]
[337266503,1725559845148,-657.74,0.00014894,2]
[337266505,1725559845158,-500.0,0.00014894,2]
[337266507,1725559845168,-500.0,0.00014894,2]
[337266509,1725559845178,-500.0,0.00014894,2]
[337266529,1725559845374,-779.69,0.00014894,2]
[337266531,1725559845384,-853.64821166,0.00014894,2]
[337266534,1725559845395,-2291.85178834,0.00014894,2]
[337266536,1725559845405,-500.0,0.00014894,2]
[337266537,1725559845414,-500.0,0.00014894,2]
[337266539,1725559845423,-500.0,0.00014894,2]
[337266541,1725559845433,-500.0,0.00014894,2]
[337266543,1725559845442,-500.0,0.00014894,2]
[337266545,1725559845453,-1658.14,0.00014894,2]
[337266547,1725559845462,-500.0,0.00014894,2]
[337266549,1725559845471,-500.0,0.00014894,2]
[337266551,1725559845481,-500.0,0.00014894,2]
[337266553,1725559845490,-401.11265912,0.00014894,2]
[337266555,1725559845500,-500.0,0.00014894,2]
[337266557,1725559845511,-500.0,0.00014894,2]
[337266559,1725559845520,-1157.41,0.00014894,2]
[337266561,1725559845530,-550.37,0.00014894,2]
[337266563,1725559845540,-228.88,0.00014894,2]
[337266565,1725559845549,-563.19,0.00014894,2]
[337266567,1725559845558,-1020.98,0.00014894,2]
[337266569,1725559845569,-500.0,0.00014894,2]
[337266571,1725559845579,-500.0,0.00014894,2]
[337266573,1725559845588,-4145.66,0.00014894,2]
[337266575,1725559845598,-532.43,0.00014894,2]
[337266577,1725559845607,-5203.41,0.00014894,2]
[337266579,1725559845617,-500.0,0.00014894,2]
[337266581,1725559845626,-500.0,0.00014894,2]
[337266583,1725559845635,-1503.48,0.00014894,2]
[337266584,1725559845645,-500.0,0.00014894,2]
[337266586,1725559845655,-591.95,0.00014894,2]
[337266588,1725559845665,-500.0,0.00014894,2]
[337266590,1725559845675,-2141.22,0.00014894,2]
[337266592,1725559845685,-874.05,0.00014894,2]
[337266594,1725559845694,-2112.07,0.00014894,2]
[337266597,1725559845705,-500.0,0.00014894,2]
[337266599,1725559845714,-500.0,0.00014894,2]
[337266601,1725559845724,-500.0,0.00014894,2]
[337266603,1725559845734,-500.0,0.00014894,2]
[337266605,1725559845744,-2554.5,0.00014894,2]
[337266607,1725559845754,-500.0,0.00014894,2]
[337266608,1725559845764,-500.0,0.00014894,2]
[337266610,1725559845773,-500.0,0.00014894,2]
[337266612,1725559845783,-308.43,0.00014894,2]
[337266614,1725559845793,-3210.6,0.00014894,2]
[337266616,1725559845803,-500.0,0.00014894,2]
[337266618,1725559845814,-507.85188545,0.00014894,2]
[337266620,1725559845823,-500.0,0.00014894,2]
[337266622,1725559845833,-219.04695927,0.00014894,2]
[337266623,1725559845842,-500.0,0.00014894,2]
[337266624,1725559845852,-500.0,0.00014894,2]
[337266625,1725559845862,-701.27,0.00014894,2]
[337266626,1725559845871,-500.0,0.00014894,2]
[337266627,1725559845880,-432.4521849,0.00014894,2]
[337266628,1725559845897,-67.5478151,0.00014894,2]
[337266629,1725559845906,-500.0,0.00014894,2]
[337266630,1725559845915,-67.1784793,0.00014894,2]
[337266631,1725559845927,-432.8215207,0.00014894,2]
[337266632,1725559845937,-500.0,0.00014894,2]
[337266633,1725559845946,-1698.58,0.00014894,2]
[337266634,1725559845956,-1065.15,0.00014894,2]
[337266635,1725559845966,-500.0,0.00014894,2]
[337266636,1725559845975,-2730.52,0.00014894,2]
[337266637,1725559845984,-500.0,0.00014894,2]
[337266638,1725559845994,-500.0,0.00014894,2]
[337266639,1725559846003,-500.0,0.00014894,2]
[337266640,1725559846012,-500.0,0.00014894,2]
[337266641,1725559846022,-500.0,0.00014894,2]
[337266642,1725559846031,-551.23,0.00014894,2]
[337266644,1725559846041,-713.78,0.00014894,2]
[337266645,1725559846050,-500.0,0.00014894,2]
[337266646,1725559846060,-795.37,0.00014894,2]
[337266647,1725559846069,-500.39840682,0.00014894,2]
[337266648,1725559846078,-3632.46,0.00014894,2]
[337266649,1725559846087,-570.0,0.00014894,2]
[337266650,1725559846096,-1705.1,0.00014894,2]
[337266651,1725559846106,-500.0,0.00014895,2]
[337266652,1725559846115,-155.59736033,0.00014895,2]
[337266653,1725559846125,-202.9393343,0.00014895,2]
[337266654,1725559846136,-500.0,0.00014895,2]
[337266655,1725559846146,-500.0,0.00014895,2]
[337266656,1725559846155,-500.0,0.00014895,2]
[337266657,1725559846165,-500.0,0.00014895,2]
[337266658,1725559846174,-1495.25,0.00014895,2]
[337266659,1725559846184,-500.0,0.00014895,2]
[337266660,1725559846194,-500.0,0.00014895,2]
[337266661,1725559846205,-240.36187227,0.00014895,2]
[337266662,1725559846215,-500.0,0.00014895,2]
[337266663,1725559846225,-164.99535302,0.00014895,2]
[337266664,1725559846235,-476.86,0.00014895,2]
[337266665,1725559846244,-500.0,0.00014895,2]
[337266666,1725559846254,-961.31,0.00014895,2]
[337266667,1725559846263,-2422.05,0.00014895,2]
[337266668,1725559846272,-2928.02,0.00014895,2]
[337266669,1725559846282,-621.44,0.00014895,2]
[337266670,1725559846291,-500.0,0.00014895,2]
[337266671,1725559846300,-500.0,0.00014895,2]
[337266672,1725559846312,-560.92,0.00014895,2]
[337266673,1725559846321,-500.0,0.00014895,2]
[337266674,1725559846330,-500.0,0.00014895,2]
[337266675,1725559846340,-1638.97,0.00014895,2]
[337266676,1725559846349,-3267.63,0.00014895,2]
[337266677,1725559846358,-513.63276293,0.00014895,2]
[337266678,1725559846367,-500.0,0.00014895,2]
[337266679,1725559846377,-246.59391934,0.00014896,2]
[337266680,1725559846386,-500.0,0.00014896,2]
[337266681,1725559846396,-500.0,0.00014896,2]
[337266682,1725559846405,-500.0,0.00014896,2]
[337266683,1725559846414,-500.0,0.00014896,2]
[337266684,1725559846424,-500.0,0.00014896,2]
[337266685,1725559846433,-713.45,0.00014896,2]
[337266686,1725559846443,-644.68,0.00014896,2]
[337266687,1725559846453,-500.0,0.00014896,2]
[337266688,1725559846462,-500.0,0.00014896,2]
[337266689,1725559846472,-500.0,0.00014896,2]
[337266690,1725559846481,-500.0,0.00014896,2]
[337266691,1725559846491,-500.0,0.00014896,2]
[337266692,1725559846500,-9049.88947029,0.00014896,2]
[337266693,1725559846514,-5149.13413065,0.00014896,2]
[337266694,1725559846662,-3958.71639906,0.00014896,2]
[337266695,1725559846672,-500.0,0.00014896,2]
[337266696,1725559846682,-2321.73,0.00014896,2]
[337266697,1725559846692,-848.51759013,0.00014896,2]
[337266707,1725560111677,795.34,0.0001198,2]
[337266714,1725560644082,3411.94635452,0.00025,60]
[337266715,1725560734213,755.57,0.00011901,2]
[337266716,1725560874689,9753.35,0.00013,10]
[337266723,1725560925317,750.0,0.00011,2]
[337266724,1725560926441,800.0,0.00013,2]
[337266732,1725561032331,-150.0,0.00013488,2]
[337266733,1725561032340,-340.46366303,0.00013754,2]
[337266734,1725561032352,-697.89036063,0.00013754,2]
[337266735,1725561032364,-723.07641731,0.00013754,2]
[337266736,1725561032375,-597.34227907,0.00013754,2]
[337266737,1725561032481,-1332.63115809,0.00013754,2]